bitfinex/quotes_ETHUSD_20251215
["timestamp","ask_amount","ask_price","bid_price","bid_amount"]
[1765809246999,185.19878031,3118.0,3117.9,3.20728695]
[1765809247777,137.54915098,3118.0,3117.9,6.29254695]
[1765809248002,137.54915098,3118.0,3117.9,5.14495636]
[1765809248214,137.54915098,3118.0,3117.9,7.44009836]
[1765809248720,124.16852886,3118.0,3117.9,8.13349965]
[1765809248926,124.16852886,3118.0,3117.9,6.20273165]
[1765809249083,123.19352886,3118.0,3117.9,10.15505965]
[1765809249434,121.24352886,3118.0,3117.9,25.90352065]
[1765809249736,121.24352886,3118.0,3117.9,13.13538736]
[1765809249737,121.76752886,3118.0,3117.9,13.13538736]
[1765809249876,121.76752886,3118.0,3117.9,5.14495636]
[1765809250083,121.76752886,3118.0,3117.9,3.20728695]
[1765809250318,121.76752886,3118.0,3117.6,0.4773]
[1765809250521,0.524,3117.9,3117.7,3.9993]
[1765809250692,0.524,3117.9,3117.6,0.4773]
[1765809250884,121.24352886,3118.0,3117.6,0.4773]
[1765809251090,121.24352886,3118.0,3117.9,0.58047529]
[1765809251328,109.95251957,3118.0,3117.9,17.80398542]
[1765809251530,109.95251957,3118.0,3117.9,6.67507142]
[1765809251727,108.97751957,3118.0,3117.9,0.4773]
[1765809251933,108.97751957,3118.0,3117.5,0.002]
[1765809252088,0.525,3117.9,3117.5,0.002]
[1765809252289,0.525,3117.9,3117.6,0.58047529]
[1765809252586,0.525,3117.9,3117.5,6.41739694]
[1765809252803,0.525,3117.9,3117.5,0.002]
[1765809252999,108.97751957,3118.0,3117.5,0.002]
[1765809253203,0.525,3117.9,3117.5,0.002]
[1765809253641,0.874804,3117.8,3117.5,0.002]
[1765809253792,0.4693,3117.7,3116.0,3.20920017]
[1765809253988,0.405504,3117.8,3117.2,3.20798646]
[1765809254215,108.97751957,3118.0,3116.5,0.58047529]
[1765809254403,0.525,3117.9,3117.0,0.58047529]
[1765809254729,0.525,3117.9,3116.9,0.003]
[1765809255230,0.405504,3117.8,3116.9,0.003]
[1765809255723,0.9943,3117.9,3116.9,0.003]
[1765809255724,0.405504,3117.6,3116.9,0.003]
[1765809256103,0.405504,3117.4,3116.9,0.003]
[1765809256298,0.4693,3117.5,3116.9,0.003]
[1765809256509,0.405504,3117.9,3116.9,0.003]
[1765809256820,0.405504,3117.7,3116.9,0.003]
[1765809257233,0.4693,3117.6,3116.9,0.003]
[1765809257690,0.526,3117.5,3116.9,0.003]
[1765809257908,0.526,3117.4,3117.0,0.002]
[1765809258156,0.526,3117.3,3116.9,0.003]
[1765809258318,0.526,3117.2,3116.9,0.003]
[1765809258936,0.9953,3117.2,3116.9,0.003]
[1765809259435,0.4693,3117.1,3116.9,0.003]
[1765809259938,0.405504,3117.0,3116.9,0.003]
[1765809260142,0.4693,3117.1,3116.9,0.003]
[1765809260344,0.4693,3117.6,3116.9,0.003]
[1765809260640,0.4693,3117.9,3116.9,0.003]
[1765809261038,108.97751957,3118.0,3116.9,0.003]
[1765809261239,0.9953,3117.9,3116.9,0.003]
[1765809261442,0.526,3117.8,3116.9,0.003]
[1765809262042,0.526,3117.8,3116.9,0.005]
[1765809262333,0.526,3117.8,3117.0,9.62463906]
[1765809262516,0.526,3117.8,3117.1,0.96296391]
[1765809262905,108.97751957,3118.0,3117.1,0.96296391]
[1765809263109,0.526,3117.9,3117.1,0.96296391]
[1765809263341,0.526,3117.9,3117.3,0.58047529]
[1765809263536,0.526,3117.9,3117.2,0.002]
[1765809263739,0.526,3117.9,3117.3,2.389965]
[1765809263915,78.32604515,3118.0,3117.9,30.58047529]
[1765809264261,1.65125543,3119.5,3118.4,17.244616]
[1765809264262,0.526,3118.9,3118.4,17.244616]
[1765809264544,0.526,3118.8,3118.6,0.58047529]
[1765809264729,0.526,3118.8,3117.7,0.58047529]
[1765809264932,0.4693,3119.7,3118.4,3.20669806]
[1765809265136,0.196,3120.0,3118.5,0.58047529]
[1765809265306,0.196,3120.0,3118.6,0.69939461]
[1765809265506,0.526,3119.9,3118.6,0.69939461]
[1765809266542,6.41066734,3119.8,3118.2,3.20694109]
[1765809266710,0.405504,3119.7,3117.2,5.587045]
[1765809266906,0.196,3120.0,3118.4,3.2067326]
[1765809267112,0.526,3119.9,3118.7,0.58047529]
[1765809267337,0.526,3119.9,3118.8,0.69936094]
[1765809267840,0.9953,3119.9,3118.8,0.69936094]
[1765809268044,0.526,3119.8,3118.7,6.41292846]
[1765809268246,0.001,3120.0,3118.8,0.58047529]
[1765809268540,0.001,3120.0,3118.9,6.41251722]
[1765809268841,0.526,3119.9,3118.9,3.20625861]
[1765809269039,0.001,3120.0,3119.2,0.58047529]
[1765809269228,0.399,3119.9,3119.3,1.90026253]
[1765809269536,0.399,3119.9,3119.4,0.58047529]
[1765809269737,0.399,3119.9,3119.2,0.58047529]
[1765809270037,0.399,3119.9,3119.0,0.58047529]
[1765809270239,0.0002,3121.3,3119.7,30.0]
[1765809270442,0.0002,3121.3,3120.5,0.58047529]
[1765809270610,0.526,3121.2,3120.5,0.58047529]
[1765809270942,0.526,3121.2,3120.9,0.58047529]
[1765809271138,0.526,3121.2,3120.2,20.411312]
[1765809271336,0.526,3121.2,3120.2,2.681015]
[1765809271640,0.526,3121.2,3120.0,0.58047529]
[1765809271821,0.526,3121.2,3120.2,0.58047529]
[1765809272017,0.526,3121.2,3120.0,0.58047529]
[1765809272228,0.526,3121.2,3120.1,0.69909372]
[1765809272440,0.526,3121.2,3120.3,0.58047529]
[1765809273143,0.525,3121.1,3120.3,0.58047529]
[1765809273314,0.525,3121.1,3120.2,3.20492276]
[1765809273930,0.525,3121.1,3120.1,1.27956901]
[1765809274141,0.525,3121.1,3120.1,4.48454816]
[1765809274343,0.0002,3121.3,3120.2,0.44846957]
[1765809274548,0.525,3121.2,3120.0,0.58047529]
[1765809274921,0.857104,3121.1,3118.6,6.72962467]
[1765809275118,0.87634865,3121.1,3118.0,9.95595856]
[1765809275424,0.87634865,3121.1,3118.7,3.20645541]
[1765809275425,0.405504,3120.9,3118.7,3.20645541]
[1765809275625,0.405504,3120.9,3118.8,3.20629128]
[1765809275825,0.405504,3120.7,3118.6,0.58047529]
[1765809276025,0.405504,3120.7,3118.8,3.20628548]
[1765809276233,0.405504,3120.5,3119.1,3.20596449]
[1765809276521,0.0002,3121.3,3119.0,2.63062]
[1765809276522,0.525,3120.4,3119.0,2.63062]
[1765809276753,0.525,3120.3,3119.1,0.32110953]
[1765809277039,0.405504,3120.2,3118.8,0.58047529]
[1765809277240,0.857104,3120.2,3118.7,3.20641763]
[1765809277415,0.405504,3120.2,3118.7,6.41288186]
[1765809277616,0.857104,3120.2,3118.1,4.248098]
[1765809277848,0.857104,3120.2,3118.7,3.20645447]
[1765809278051,0.4516,3120.2,3118.8,0.58047529]
[1765809278254,0.524,3120.1,3119.0,0.58047529]
[1765809278428,0.001,3120.3,3119.2,6.41190048]
[1765809278634,0.001,3120.3,3119.2,3.20595024]
[1765809278635,0.524,3120.2,3119.2,3.20595024]
[1765809278834,0.524,3120.2,3119.2,6.41190048]
[1765809279029,0.525,3120.1,3119.3,4.63561229]
[1765809279230,0.525,3120.1,3119.4,1.4253463]
[1765809279430,0.9766,3120.1,3118.6,3.20654161]
[1765809279742,0.9766,3120.1,3118.1,3.20701292]
[1765809279941,0.9766,3120.1,3118.2,3.846566]
[1765809280241,0.857104,3120.0,3118.3,0.70535789]
[1765809280440,0.857104,3120.0,3117.6,0.01924465]
[1765809280441,0.405504,3119.8,3117.7,6.8135]
[1765809280750,0.405504,3119.8,3117.7,16.4359781]
[1765809280950,0.4516,3119.8,3118.0,8.504243]
[1765809281121,0.525,3119.7,3117.8,3.278828]
[1765809281324,0.525,3119.7,3118.1,0.58047529]
[1765809281518,0.4516,3119.6,3117.9,1.29013061]
[1765809281728,0.524,3119.5,3118.0,7.669036]
[1765809281929,0.524,3119.4,3118.0,7.669036]
[1765809282145,0.524,3119.4,3118.1,0.89591666]
[1765809282423,3.72984538,3119.4,3118.3,0.58047529]
[1765809282628,0.4516,3119.3,3117.4,3.278756]
[1765809282858,0.4516,3119.3,3117.5,0.32980007]
[1765809283167,0.4516,3119.3,3117.8,3.20738808]
[1765809283366,0.4516,3119.3,3118.1,3.20707256]
[1765809283526,0.4516,3119.3,3117.5,11.850011]
[1765809283851,0.4516,3119.3,3117.7,3.2074496]
[1765809284091,0.405504,3119.2,3117.1,4.17107195]
[1765809284358,0.405504,3119.2,3117.2,0.03208007]
[1765809284568,10.02397143,3119.0,3117.1,3.20810986]
[1765809284858,6.81781562,3119.0,3117.2,12.26906629]
[1765809285024,0.405504,3118.8,3117.2,0.58047529]
[1765809285227,0.405504,3118.8,3116.9,0.005]
[1765809285429,0.405504,3118.6,3116.9,0.005]
[1765809285829,0.4516,3118.6,3116.9,0.005]
[1765809286458,0.98597929,3118.4,3116.9,0.005]
[1765809286643,9.62000961,3118.5,3116.9,6.42160363]
[1765809286644,6.41333974,3118.5,3116.9,6.42160363]
[1765809286831,0.929504,3118.4,3117.0,0.64216036]
[1765809287032,0.524,3118.4,3117.0,0.64216036]
[1765809287253,0.524,3118.3,3117.0,0.64216036]
[1765809287562,3.65826987,3118.5,3117.0,1.22263565]
[1765809287765,3.20636142,3118.8,3117.2,4.31363]
[1765809287973,3.20636142,3118.8,3117.1,0.76442393]
[1765809287974,0.9756,3118.7,3117.1,0.76442393]
[1765809288142,0.01924465,3118.4,3117.1,0.76442393]
[1765809288344,0.01924465,3118.3,3116.9,0.005]
[1765809288576,0.98597929,3118.1,3117.0,0.002]
[1765809288780,0.405504,3117.9,3117.0,0.002]
[1765809289283,12.82791352,3118.2,3117.0,0.002]
[1765809289284,0.524,3117.8,3117.0,0.002]
[1765809289579,3.20697838,3118.2,3117.1,0.003]
[1765809289779,0.524,3118.1,3117.1,0.32483156]
[1765809290084,0.524,3118.0,3117.1,0.32483156]
[1765809290256,0.524,3117.9,3117.1,0.32483156]
[1765809290576,0.01924465,3119.0,3117.2,6.41601436]
[1765809290875,0.9756,3118.8,3117.3,1.25455988]
[1765809291172,0.405504,3118.7,3117.1,0.003]
[1765809291374,0.857104,3118.7,3117.1,3.20806708]
[1765809291545,0.524,3118.6,3117.2,5.55113]
[1765809291743,0.524,3118.5,3117.3,1.19673072]
[1765809291942,0.524,3118.5,3117.2,5.65575]
[1765809292372,0.4516,3118.6,3117.1,6.41617718]
[1765809292676,0.1964,3118.9,3116.5,24.385915]
[1765809292860,4.13586542,3118.8,3116.7,18.90756]
[1765809293062,0.88482654,3118.8,3116.9,10.736891]
[1765809293261,0.58047529,3119.4,3117.2,0.58047529]
[1765809293262,0.4516,3119.4,3117.2,0.58047529]
[1765809293575,0.9748,3119.3,3117.0,30.0]
[1765809293793,7.38650947,3119.3,3117.2,13.322384]
[1765809293961,7.38650947,3119.3,3116.8,8.87609869]
[1765809293962,0.01924465,3119.1,3117.3,1.39028593]
[1765809294291,0.9756,3119.2,3117.2,13.966703]
[1765809294292,0.524,3119.0,3117.2,13.966703]
[1765809294496,3.20584746,3119.3,3117.4,0.58047529]
[1765809294773,3.20584746,3119.3,3117.7,9.669846]
[1765809294957,0.1964,3119.5,3117.7,9.669846]
[1765809295154,0.524,3119.4,3117.7,9.669846]
[1765809295461,3.20554802,3119.6,3117.6,0.58047529]
[1765809295462,0.524,3119.3,3117.8,1.02503213]
[1765809295667,0.524,3119.3,3117.6,0.58047529]
[1765809295668,0.524,3119.3,3117.7,22.810388]
[1765809295853,0.4516,3119.2,3117.4,2.554741]
[1765809296056,0.47084465,3119.2,3117.4,0.58047529]
[1765809296262,13.22768723,3119.6,3117.7,6.98213407]
[1765809296263,6.41108719,3119.6,3117.7,6.98213407]
[1765809296447,0.1964,3120.1,3118.4,30.0]
[1765809296649,0.001,3120.3,3118.7,0.58047529]
[1765809296989,0.001,3120.3,3119.3,30.0]
[1765809297286,0.524,3120.2,3118.9,13.075011]
[1765809297486,0.524,3120.2,3118.4,0.58047529]
[1765809297487,0.9756,3120.2,3118.4,0.58047529]
[1765809298654,6.41005094,3120.1,3118.6,0.58047529]
[1765809298854,6.86165094,3120.1,3118.6,0.58047529]
[1765809299378,0.857104,3120.0,3118.4,3.20673294]
[1765809299754,9.61507641,3120.1,3118.4,3.20673294]
[1765809299755,0.405504,3119.8,3118.4,3.20673294]
[1765809300166,0.857104,3119.8,3118.4,3.20673294]
[1765809300475,0.1964,3119.9,3118.5,0.58047529]
[1765809300695,0.001,3120.3,3118.8,14.132402]
[1765809300859,0.001,3120.3,3116.4,3.22806271]
[1765809300860,0.7204,3119.8,3116.4,3.22806271]
[1765809301047,0.405504,3119.6,3117.5,3.20763937]
[1765809301250,0.405504,3119.6,3118.0,3.2091658]
[1765809301547,0.405504,3119.4,3118.0,0.002]
[1765809301781,0.405504,3119.2,3118.0,0.002]
[1765809302278,0.4698,3119.1,3118.0,0.002]
[1765809302483,0.1964,3119.8,3118.0,0.002]
[1765809302652,0.4698,3119.7,3118.2,0.58047529]
[1765809303054,0.525,3119.6,3118.3,0.03206875]
[1765809303351,0.405504,3119.5,3118.0,0.002]
[1765809303555,0.1978,3118.1,3118.0,0.002]
[1765809303781,1.598104,3118.1,3118.0,0.002]
[1765809304162,1.073104,3118.1,3118.0,0.002]
[1765809304550,4.80518523,3118.1,3118.0,0.002]
[1765809304753,5.60640106,3118.1,3118.0,0.002]
[1765809305158,2.39931983,3118.1,3118.0,0.002]
[1765809305359,1.46881583,3118.1,3118.0,0.002]
[1765809305564,4.39968123,3118.1,3118.0,0.002]
[1765809305778,0.1978,3118.1,3118.0,0.002]
[1765809305982,6.9304266,3119.9,3118.0,0.002]
[1765809306185,0.4698,3119.3,3118.0,0.002]
[1765809306485,0.525,3119.2,3118.0,0.002]
[1765809306669,0.525,3119.1,3118.0,0.002]
[1765809307054,0.525,3119.0,3118.0,0.002]
[1765809307257,0.1978,3119.5,3118.0,0.002]
[1765809307484,0.4698,3119.3,3118.0,0.002]
[1765809307865,0.525,3119.2,3118.0,0.002]
[1765809308063,0.001,3119.7,3118.0,0.002]
[1765809308267,0.525,3119.6,3118.3,0.58047529]
[1765809308455,0.525,3119.6,3118.6,0.58047529]
[1765809308654,0.525,3119.6,3118.8,3.78679506]
[1765809308877,0.001,3119.7,3118.8,3.78679506]
[1765809308878,0.525,3119.5,3118.8,6.41266569]
[1765809309076,0.001,3119.7,3118.8,6.41266569]
[1765809309252,0.525,3119.4,3118.9,0.64126657]
[1765809309690,0.001,3119.7,3118.8,6.41266569]
[1765809310067,0.001,3119.7,3118.8,9.61902711]
[1765809310263,0.001,3119.7,3119.0,18.311557]
[1765809310465,0.001,3119.7,3119.3,0.58047529]
[1765809310667,0.001,3119.7,3119.6,0.58047529]
[1765809310864,0.178,3120.1,3119.6,3.63852282]
[1765809311065,0.178,3120.1,3119.4,0.58047529]
[1765809311375,0.178,3120.1,3119.2,0.58047529]
[1765809311576,0.178,3120.1,3119.1,16.0302651]
[1765809311577,0.178,3120.1,3119.6,0.58047529]
[1765809311789,0.178,3120.1,3118.7,3.20645671]
[1765809311989,0.405504,3120.0,3118.0,0.002]
[1765809312155,0.405504,3120.0,3118.1,0.322847]
[1765809312488,0.4698,3120.2,3118.5,0.01924465]
[1765809312685,3.73002547,3120.1,3118.8,0.58047529]
[1765809312885,0.405504,3120.0,3118.8,0.58047529]
[1765809313085,0.73405549,3119.9,3118.8,0.58047529]
[1765809313290,0.525,3119.8,3118.6,3.20652916]
[1765809313584,0.525,3119.8,3118.0,0.002]
[1765809313585,0.9948,3119.8,3118.0,0.58247529]
[1765809313786,0.73405549,3119.9,3118.7,0.58047529]
[1765809313989,0.525,3119.8,3118.7,0.58047529]
[1765809314159,0.525,3119.7,3118.7,0.58047529]
[1765809314577,0.6676,3120.6,3118.9,0.58047529]
[1765809314777,0.525,3120.5,3118.9,0.59971994]
[1765809315102,0.4698,3120.5,3119.0,0.70124428]
[1765809315274,0.405504,3120.4,3118.1,0.01924465]
[1765809315462,0.525,3120.3,3118.8,21.503977]
[1765809315662,0.4698,3121.1,3119.2,30.0]
[1765809315873,0.525,3121.0,3119.5,0.58047529]
[1765809316167,0.525,3121.0,3119.1,0.01924465]
[1765809316371,0.405504,3120.8,3118.9,5.803011]
[1765809316569,0.405504,3120.6,3119.0,6.41231162]
[1765809316887,1.15043225,3120.5,3119.1,0.64123116]
[1765809317594,3.60982946,3120.8,3119.1,1.22170645]
[1765809317780,0.525,3120.7,3119.1,1.22170645]
[1765809317984,0.001,3120.2,3119.2,0.01924465]
[1765809318172,0.525,3120.1,3119.6,0.58047529]
[1765809318376,0.525,3120.0,3119.7,0.03205436]
[1765809318574,0.525,3120.0,3119.6,0.58047529]
[1765809318774,0.525,3120.0,3119.7,1.01974011]
[1765809319166,0.525,3120.0,3119.4,3.20572435]
[1765809319368,0.525,3120.0,3119.4,6.41146904]
[1765809319578,0.525,3119.9,3119.4,6.41146904]
[1765809319865,0.001,3120.2,3119.4,6.41146904]
[1765809319866,0.525,3119.8,3119.4,6.41146904]
[1765809320070,0.525,3119.8,3119.4,3.20572435]
[1765809320297,0.001,3120.2,3119.4,9.93778617]
[1765809320471,0.525,3120.1,3119.4,9.93778617]
[1765809320673,0.525,3120.1,3119.4,6.73204148]
[1765809320976,0.001,3120.2,3119.5,9.70352529]
[1765809321163,0.001,3120.2,3119.6,1.96413115]
[1765809321164,0.525,3120.1,3119.6,1.96413115]
[1765809321692,0.001,3120.2,3119.6,1.96413115]
[1765809321693,0.001,3120.2,3119.7,0.01924465]
[1765809321998,0.001,3120.2,3120.1,30.01924465]
[1765809322208,0.0002,3121.3,3120.4,0.58047529]
[1765809322420,0.525,3121.2,3120.1,0.01924465]
[1765809322630,0.0002,3121.3,3120.1,0.01924465]
[1765809322631,0.0002,3121.3,3120.5,9.61384392]
[1765809322773,0.525,3121.1,3120.6,7.13390942]
[1765809322974,0.525,3121.0,3120.6,0.58047529]
[1765809323226,0.525,3121.0,3120.7,30.0]
[1765809323521,0.1978,3120.9,3118.9,3.20616866]
[1765809323669,0.525,3120.8,3119.6,0.58047529]
[1765809323869,0.0002,3121.3,3120.4,9.61408217]
[1765809324176,0.5252,3121.3,3120.8,5.996137]
[1765809324475,0.5252,3121.3,3120.9,0.65766123]
[1765809324710,0.5252,3121.3,3120.7,0.58047529]
[1765809325939,0.0002,3121.3,3120.7,0.58047529]
[1765809326516,0.0002,3121.3,3121.0,0.58047529]
[1765809326714,0.5252,3121.3,3120.0,3.22435604]
[1765809326919,0.5252,3121.3,3120.8,0.58047529]
[1765809327203,0.5252,3121.3,3120.5,3.20452208]
[1765809327443,0.0002,3121.3,3120.0,5.536525]
[1765809327744,0.525,3121.2,3120.5,0.58047529]
[1765809327913,0.0002,3121.3,3121.1,3.20395742]
[1765809328104,0.0002,3121.3,3121.2,3.20389593]
[1765809328306,0.0002,3121.3,3121.2,3.84468591]
[1765809328508,0.0002,3121.3,3121.1,3.20397991]
[1765809328704,0.0002,3121.3,3120.1,1.43451871]
[1765809328942,0.525,3121.2,3120.5,3.20460035]
[1765809329183,0.0002,3121.3,3120.8,3.20430425]
[1765809329304,0.0002,3121.3,3119.7,3.20539944]
[1765809329305,0.525,3121.1,3120.4,3.20470398]
[1765809329636,0.0002,3121.3,3120.4,3.2046588]
[1765809329835,0.0002,3121.3,3120.9,4.85080729]
[1765809330039,0.0002,3121.3,3120.9,0.58047529]
[1765809330336,0.0002,3121.3,3121.0,13.076181]
[1765809330640,0.0002,3121.3,3120.9,0.58047529]
[1765809330802,0.0002,3121.3,3121.0,6.40820248]
[1765809331140,0.0002,3121.3,3121.2,0.58047529]
[1765809331322,0.0002,3121.3,3121.2,8.94721329]
[1765809331633,0.0002,3121.3,3121.2,0.58047529]
[1765809332433,0.0002,3121.3,3121.2,8.87021729]
[1765809332611,0.0002,3121.3,3121.2,26.03054529]
[1765809332945,0.0002,3121.3,3121.2,30.18113735]
[1765809333150,0.0002,3121.3,3121.2,22.98113735]
[1765809333442,0.0002,3121.3,3121.2,6.99397435]
[1765809333657,0.0002,3121.3,3121.2,33.78437122]
[1765809333825,0.001,3122.6,3121.5,0.58047529]
[1765809334024,0.524,3122.5,3121.2,12.83482837]
[1765809334235,0.001,3122.6,3121.7,0.58047529]
[1765809334438,0.001,3122.6,3121.8,1.71600693]
[1765809334646,0.524,3122.5,3121.5,0.58047529]
[1765809334848,0.524,3122.5,3121.3,0.58047529]
[1765809334849,0.524,3122.5,3121.7,0.58047529]
[1765809335145,0.524,3122.5,3121.5,3.20351267]
[1765809335347,0.524,3122.5,3121.6,0.58047529]
[1765809335648,0.524,3122.4,3121.6,0.58047529]
[1765809335946,0.001,3122.6,3121.6,0.58047529]
[1765809336147,0.524,3122.5,3121.6,0.58047529]
[1765809336520,0.001,3122.6,3121.7,23.139266]
[1765809336742,0.525,3122.5,3122.0,6.4061499]
[1765809336948,0.525,3122.5,3122.0,3.20307495]
[1765809337464,0.525,3122.5,3121.9,3.20314504]
[1765809337825,0.001,3122.6,3121.9,3.20314504]
[1765809337826,0.001,3122.6,3122.0,0.58047529]
[1765809338029,0.001,3122.6,3122.3,0.58047529]
[1765809338261,0.001,3122.6,3122.3,0.61795251]
[1765809338420,0.001,3122.6,3122.1,2.066833]
[1765809338748,0.001,3122.6,3122.2,0.58047529]
[1765809338971,0.524,3122.5,3122.1,6.4059447]
[1765809339181,0.524,3122.4,3122.1,3.20297235]
[1765809339370,0.524,3122.4,3122.1,6.4059447]
[1765809339571,0.524,3122.4,3121.4,0.01924465]
[1765809339870,0.524,3122.4,3121.5,3.20354008]
[1765809340166,0.5232,3122.4,3121.6,3.20342992]
[1765809340327,0.4607,3122.3,3121.2,3.20383689]
[1765809340521,0.4607,3122.3,3120.4,5.5990498]
[1765809340753,3.66355518,3122.3,3120.9,0.59971994]
[1765809340948,6.86641036,3122.3,3121.0,6.90941127]
[1765809341152,0.524,3122.2,3121.0,6.90941127]
[1765809341325,6.86641036,3122.3,3121.1,0.58047529]
[1765809341525,0.524,3122.2,3121.1,0.58047529]
[1765809341731,0.73902463,3122.2,3121.1,0.59971994]
[1765809342042,0.524,3122.1,3121.1,0.01924465]
[1765809342244,0.001,3122.6,3121.7,0.01924465]
[1765809342543,0.001,3122.3,3121.9,0.58047529]
[1765809342750,0.001,3122.3,3122.1,0.58047529]
[1765809342944,0.001,3122.3,3122.2,8.85247749]
[1765809343256,0.001,3122.3,3122.2,21.57981649]
[1765809343458,0.001,3122.3,3122.2,42.4313735]
[1765809343633,0.001,3122.6,3122.3,0.58047529]
[1765809343957,0.001,3122.6,3122.5,0.01924465]
[1765809344906,0.001,3122.6,3122.5,33.80228198]
[1765809345060,0.001,3123.6,3123.1,30.58047529]
[1765809345254,0.001,3123.6,3123.1,0.58047529]
[1765809345497,0.001,3123.6,3123.2,14.93575]
[1765809345731,0.001,3123.8,3123.2,0.58047529]
[1765809345998,0.524,3124.7,3123.5,0.58047529]
[1765809346160,0.524,3124.7,3123.4,0.58047529]
[1765809346358,0.001,3125.0,3123.4,0.58047529]
[1765809346359,0.001,3125.0,3123.9,0.58047529]
[1765809346584,0.001,3125.0,3124.2,0.01924465]
[1765809346786,0.525,3124.8,3124.3,3.20071696]
[1765809347511,0.525,3124.8,3124.2,0.58047529]
[1765809347797,0.001,3124.8,3124.3,0.58047529]
[1765809348038,0.525,3124.8,3124.3,0.58047529]
[1765809348162,0.001,3124.8,3124.3,0.58047529]
[1765809348361,0.525,3124.8,3124.3,0.58047529]
[1765809348556,0.525,3124.8,3124.1,3.20091989]
[1765809348557,0.001,3124.8,3124.1,3.20091989]
[1765809348761,0.001,3124.8,3124.2,3.78125929]
[1765809348955,0.524,3124.5,3124.2,3.78125929]
[1765809349159,0.525,3124.4,3124.2,3.78125929]
[1765809349388,0.001,3124.4,3124.2,3.78125929]
[1765809349574,0.525,3124.4,3124.3,0.58047529]
[1765809349783,0.001,3124.4,3124.3,0.58047529]
[1765809349979,0.001,3124.4,3124.2,0.58047529]
[1765809350180,0.001,3124.4,3124.1,0.58047529]
[1765809350381,0.001,3124.4,3124.3,0.58047529]
[1765809350586,0.001,3124.4,3124.2,0.58047529]
[1765809350587,0.525,3124.4,3124.2,0.58047529]
[1765809350788,0.001,3124.4,3124.3,0.58047529]
[1765809351088,0.001,3124.4,3124.3,29.37041363]
[1765809351405,0.001,3124.8,3124.3,10.18262617]
[1765809351617,0.001,3125.0,3124.3,10.18262617]
[1765809351618,0.001,3125.0,3124.6,0.01924465]
[1765809351866,0.001,3126.3,3125.0,5.59033235]
[1765809351982,0.524,3126.2,3125.3,0.58047529]
[1765809352183,0.001,3126.3,3125.3,0.58047529]
[1765809352383,0.001,3126.3,3125.6,0.58047529]
[1765809352604,0.193,3128.0,3126.1,30.0]
[1765809352773,0.193,3128.0,3126.5,5.59033235]
[1765809352774,0.524,3128.0,3126.5,5.59033235]
[1765809352975,0.002,3129.0,3127.0,5.59033235]
[1765809352976,0.6537,3128.7,3127.0,5.59033235]
[1765809353170,0.002,3129.0,3127.5,5.59033235]
[1765809353496,0.002,3129.0,3127.9,30.405504]
[1765809353695,0.002,3129.0,3128.8,0.58047529]
[1765809353891,0.002,3129.0,3128.3,0.98597929]
[1765809354122,0.002,3129.0,3128.7,0.58047529]
[1765809354415,0.002,3129.0,3128.0,0.98597929]
[1765809354586,0.002,3129.0,3128.4,0.58047529]
[1765809354790,0.002,3129.0,3127.8,0.98597929]
[1765809355104,0.002,3129.0,3128.1,0.58047529]
[1765809355400,0.002,3129.0,3128.9,0.01924465]
[1765809355909,0.002,3129.0,3128.7,0.01924465]
[1765809356334,0.002,3129.0,3128.4,0.01924465]
[1765809356478,0.002,3129.0,3128.2,0.01924465]
[1765809356674,0.407504,3129.0,3127.7,0.01924465]
[1765809356978,6.91602274,3128.9,3127.8,0.58047529]
[1765809357198,0.77842267,3128.8,3127.7,3.21646013]
[1765809357473,0.77842267,3128.8,3127.7,0.01924465]
[1765809357712,0.405504,3128.6,3127.7,0.01924465]
[1765809357912,0.405504,3128.6,3127.3,0.01924465]
[1765809358412,0.405504,3128.4,3126.9,0.01924465]
[1765809358711,0.405504,3128.4,3126.3,3.19859602]
[1765809358901,0.98597929,3128.0,3125.9,3.19898813]
[1765809359117,0.405504,3127.8,3126.4,0.01924465]
[1765809359427,0.405504,3127.6,3126.4,0.01924465]
[1765809359829,0.524,3127.5,3126.4,0.01924465]
[1765809360036,0.405504,3127.4,3126.2,0.01924465]
[1765809360201,0.405504,3127.4,3126.0,3.21817766]
[1765809360406,0.9837,3127.3,3125.9,3.19898329]
[1765809360634,0.405504,3127.2,3126.0,0.01924465]
[1765809360812,0.193,3127.7,3126.4,0.01924465]
[1765809361016,3.19673806,3128.2,3126.8,0.58047529]
[1765809361213,0.524,3128.1,3127.0,0.58047529]
[1765809361447,9.58834056,3128.8,3126.8,0.58047529]
[1765809361448,6.39222704,3128.8,3126.8,0.58047529]
[1765809361620,0.002,3127.6,3127.2,0.58047529]
[1765809361944,0.002,3127.6,3127.5,0.01924465]
[1765809362308,0.002,3127.6,3127.5,30.59971994]
[1765809362502,0.002,3128.9,3127.7,0.58047529]
[1765809362718,0.002,3128.9,3127.5,0.59971994]
[1765809362719,0.002,3128.9,3128.0,21.618014]
[1765809362920,0.002,3128.9,3128.4,6.39304436]
[1765809363242,0.002,3128.9,3128.5,0.58047529]
[1765809363440,0.523,3129.1,3128.9,0.58047529]
[1765809363657,0.002,3130.2,3128.9,5.59033235]
[1765809363941,0.523,3130.1,3129.2,0.58047529]
[1765809364136,3.19670872,3130.2,3128.6,19.733568]
[1765809364137,0.524,3130.0,3128.6,19.733568]
[1765809364312,0.524,3130.0,3128.4,6.39304436]
[1765809364624,0.002,3130.2,3128.9,25.169403]
[1765809364826,0.523,3130.1,3129.0,0.58047529]
[1765809365018,6.38977634,3130.0,3129.1,0.01924465]
[1765809365212,0.524,3129.9,3129.1,0.01924465]
[1765809365434,0.524,3129.9,3128.7,0.01924465]
[1765809365741,0.405504,3129.8,3128.5,0.01924465]
[1765809366116,0.523,3129.7,3128.7,0.59971994]